Cogmind - Beta 15 @@@ ROGUE MODE // 2025.10.06 @ 22:07:04 Player: Runagate Result: Destroyed by H-61 Shepherd with Heavy Assault Cannon Performance ------------- Evolutions (4) 2000 Regions Visited (5) 1000 Robots Destroyed (214) 1070 Value Destroyed (7636) 7636 Prototype IDs (8) 160 Alien Tech Used (0) 0 Bonus (1157) 1157 TOTAL SCORE: 13023 Bonus ------- High Alert Combat Kills 1157 Cogmind --------- Core Integrity 0/850 Matter 295/300 Energy 98/100 System Corruption 16% Temperature Cool (0) Movement Core (50) Location -6/Factory Parts ------- > --- POWER (2) -------- (None) > --- PROPULSION (4) --- (None) > --- UTILITY (5) ------ (None) > --- WEAPON (4) ------- (None) > --- INVENTORY (5) ---- Improved Deuterium Engine Medium Treads Medium Treads Advanced Sensor Array Improved Signal Interpreter Peak State ------------ > --- POWER ------------ Improved Deuterium Engine Heavy Deuterium Engine > --- PROPULSION ------- Medium Treads Medium Treads Medium Treads Improved Medium Treads > --- UTILITY ---------- Improved Cooling System High-capacity Storage Unit Advanced Targeting Computer Improved Medium Armor Plating Improved Shield Generator > --- WEAPON ----------- Gatling Laser Plasma Cannon Precision Assault Rifle Precision Assault Rifle > --- INVENTORY -------- Nuclear Core Improved Deuterium Engine Armored Treads Advanced Treads Medium Treads Improved Cooling System Improved Cooling System Large Battery High-capacity Matter Pod High-capacity Matter Pod Compact Matter Pod Improved Sensor Array Seismic Detector Improved Medium Armor Plating Improved Medium Armor Plating Hardlight Generator Heavy Plasma Cannon Improved Assault Rifle Precision Assault Rifle Improved Light Cannon [Rating: 66] Favorites ----------- Power Heavy Deuterium Engine Engine Heavy Deuterium Engine Power Core Nuclear Core Propulsion Light Treads Treads Light Treads Leg Aluminum Leg Utility High-capacity Storage Unit Device Seismic Detector Storage High-capacity Storage Unit Processor Advanced Targeting Computer Protection Improved Medium Armor Plating Weapon Precision Assault Rifle Energy Gun Gatling Laser Energy Cannon Heavy Ion Cannon Ballistic Gun Precision Assault Rifle Ballistic Cannon Flak Cannon Build | -11 -10 -9 -8 -7 -6 ------- Run | Yrd Mat Mat Mat Fac Fac Slots Evolved 8 | . . 2 2 2 2 Power 1 | . . . . . 1 Propulsion 2 | . . 1 1 . . Utility 3 | . . . 1 2 . Weapon 2 | . . 1 . . 1 Parts Attached 115 | 7 12 22 19 29 26 Power 15 | 1 2 4 . 3 5 Engine 12 | 1 2 3 . 2 4 Core 3 | . . 1 . 1 1 Reactor . | . . . . . . Propulsion 26 | 2 2 6 7 5 4 Treads 25 | 2 1 6 7 5 4 Leg 1 | . 1 . . . . Wheel . | . . . . . . Hover . | . . . . . . Flight . | . . . . . . Utility 35 | 2 5 3 5 13 7 Device 19 | 1 2 1 3 10 2 Storage 5 | 1 2 1 . . 1 Processor 2 | . . . . 1 1 Hackware . | . . . . . . Protection 9 | . 1 1 2 2 3 Artifact . | . . . . . . Weapon 39 | 2 3 9 7 8 10 Energy Gun 8 | 1 1 . . 2 4 Energy Cannon 4 | . . 2 . 2 . Ballistic Gun 20 | 1 2 6 6 2 3 Ballistic Cannon 7 | . . 1 1 2 3 Launcher . | . . . . . . Special Weapon . | . . . . . . Impact Weapon . | . . . . . . Slashing Weapon . | . . . . . . Piercing Weapon . | . . . . . . Special Melee Weapon . | . . . . . . Unidentified Prototypes 6 | . . 2 1 2 1 Parts Lost 24 | . 2 1 1 1 19 Power 1 | . . . . . 1 Propulsion 7 | . 1 1 . . 5 Utility 7 | . . . 1 . 6 Weapon 9 | . 1 . . 1 7 Highest Loss Streak 12 | . 1 1 1 1 12 To Critical Strikes . | . . . . . . Average Backups 17 | 1 7 17 19 19 18 Power 2 | . 1 1 2 2 2 Propulsion 2 | . . 1 1 3 2 Utility 9 | . 4 8 9 9 10 Weapon 4 | . 1 6 5 4 3 Tool/Special . | . . . . . . Unused Backups 47 | . 1 11 13 7 15 Power 5 | . . 1 1 1 2 Propulsion 6 | . . 1 1 2 2 Utility 21 | . 1 2 5 4 9 Weapon 15 | . . 7 6 . 2 Tool/Special . | . . . . . . Average Slot Usage (%) 98 | . 98 99 99 99 97 Engine 10 | . 14 9 9 7 12 Treads 29 | . 26 32 35 30 25 Device 11 | . 12 3 9 14 12 Storage 8 | . 14 11 9 7 5 Processor 3 | . . . . 6 5 Protection 6 | . 1 7 8 7 5 Energy Gun 4 | . 13 . . 1 8 Energy Cannon 2 | . . 2 4 4 2 Ballistic Gun 14 | . 14 26 17 10 11 Ballistic Cannon 3 | . . 3 5 5 2 Peak Build Rating 66 | 7 10 20 37 56 66 Average Rating 38 | 5 8 15 26 47 60 On Entrance 21 | . 7 10 20 35 56 Naked Turns 67 | . . . . . 67 Heaviest Build 98 | 14 30 61 70 83 98 Greatest Support 114 | 40 40 60 80 112 114 Greatest Overweight (x) 26 | . 2 1 1 26 1 Average Overweight (x) . | . . . . . . Largest Inventory Capacity 20 | 8 15 20 20 20 20 Average Capacity 19 | 7 12 19 20 20 19 Most Carried 20 | 2 14 20 20 20 20 Average Carried 17 | 1 7 17 19 19 18 Final Capacity 20 | 8 15 20 20 20 5 Final Carried 20 | 2 12 20 20 20 5 Class Distribution -------------------- 34% | Gunner 29% | Tank 20% | Scavenger-Tank 12% | Mutant 3% | Scavenger-Gunner Dominant Class ---------------- Mutant | -10/Materials Scavenger-Tank | -9/Materials Scavenger-Tank | -8/Materials Gunner | -7/Factory Gunner | -6/Factory Resources | -11 -10 -9 -8 -7 -6 ----------- Run | Yrd Mat Mat Mat Fac Fac Matter Collected 7017 | 297 357 874 1125 1911 2453 Remotely . | . . . . . . Salvage Created 7953 | 83 785 1130 1252 1970 2733 Parts 418 | 9 43 55 81 123 107 Haulers Intercepted 7 | . 1 3 3 . . Recyclers Shooed 9 | . 1 1 5 2 . Parts Field Recycled . | . . . . . . Retrieved Matter . | . . . . . . Parts Self-Destructed . | . . . . . . Prevented . | . . . . . . Kills | -11 -10 -9 -8 -7 -6 ------- Run | Yrd Mat Mat Mat Fac Fac Combat Hostiles Destroyed 169 | . 15 22 28 47 57 Guns 108 | . 15 16 11 26 40 Cannons 58 | . . 6 16 21 15 AOE 2 | . . . 1 . 1 Classes Destroyed 19 | 2 4 5 1 3 4 Worker 11 | . 1 1 4 3 2 Builder 8 | . . 2 1 4 1 Tunneler 4 | 1 1 1 1 . . Hauler 7 | . 1 3 3 . . Recycler 6 | 1 . 2 1 . 2 Mechanic 1 | . . . 1 . . Operator 1 | . . . . 1 . Watcher 7 | . 3 1 1 1 1 Swarmer 33 | . . 3 7 11 12 Saboteur 1 | . . . . . 1 Grunt 85 | . 15 14 15 19 22 Brawler 6 | . . 1 1 2 2 Duelist 7 | . . 1 1 2 3 Protector 1 | . . . . . 1 Sentry 18 | . . 3 4 5 6 Specialist 2 | . . . . . 2 Hunter 1 | . . . . 1 . Programmer 14 | . . . . 7 7 Behemoth 1 | . . . . . 1 Best Kill Streak 7 | 1 4 5 6 7 5 Combat Bots Only 5 | . 4 4 5 5 5 Max Kills in Single Turn 3 | 1 1 1 2 3 2 Gunslinging . | . . . . . . Exploded 1 | . . . 1 . 1 Melee . | . . . . . . Uniques/NPCs Destroyed . | . . . . . . Combat | -11 -10 -9 -8 -7 -6 -------- Run | Yrd Mat Mat Mat Fac Fac Hostile Shots Fired 952 | . 85 72 101 261 433 Missed 275 | . 17 20 22 94 122 Hits 677 | . 68 52 79 167 311 Melee 17 | . . 1 . 7 9 Projectile 660 | . 68 51 79 160 302 AOE 3 | . . 2 . 1 . Critical Strikes 20 | . 2 2 2 3 11 Part Disruptions 3 | . . . . . 3 Damage Taken 9573 | . 872 865 1107 1921 4808 Core 1204 | . 88 37 53 126 900 Absorbed by Shields 1212 | . . . . 507 705 Regen/Repaired (Parts) 419 | . 219 103 76 . 21 Core Remaining (%) 85 | 100 64 90 90 82 . Volleys Fired 444 | 9 69 64 75 99 128 Largest 4 | 2 2 3 3 3 4 Hottest 219 | 60 80 114 128 188 219 Shots Fired 1348 | 18 135 192 224 295 484 Gun 978 | 18 135 156 129 162 378 Cannon 370 | . . 36 95 133 106 Launcher . | . . . . . . Special . | . . . . . . Kinetic 939 | 9 63 187 182 223 275 Thermal 409 | 9 72 5 42 72 209 Explosive . | . . . . . . Electromagnetic . | . . . . . . Robot Hit Streak 37 | 3 21 15 13 37 31 Robot Miss Streak 8 | 3 3 3 7 6 8 Penetration Max 1 | . . . 1 1 . Secondary Targets 5 | . 2 2 . . 1 Max Gunslinging Chain 1 | . 1 1 . . 1 Shots Hit Robots 927 | 10 101 121 141 206 348 Core Hits 541 | 3 43 47 92 126 230 Critical Kills 2 | . . . . 2 . Critical Parts Destroyed 2 | . 1 . . 1 . Critical Strikes 15 | . 1 2 . 4 8 Burn 8 | . . . . . 8 Destroy 4 | . 1 . . 3 . Blast 3 | . . 2 . 1 . Melee Attacks . | . . . . . . Impact . | . . . . . . Slashing . | . . . . . . Piercing . | . . . . . . Sneak Attacks . | . . . . . . Combat Hostiles . | . . . . . . Follow-up Attacks . | . . . . . . Damage Inflicted 19167 | 131 1235 1835 2863 5236 7867 Guns 12701 | 131 1188 1421 1375 2738 5848 Cannons 5649 | . . 338 1172 2214 1925 Explosions 458 | . . . 212 246 . Melee . | . . . . . . Ramming 359 | . 47 76 104 38 94 Kinetic 11963 | 51 521 1718 2034 3480 4159 Thermal 6845 | 80 667 41 725 1718 3614 Explosive . | . . . . . . Electromagnetic . | . . . . . . Impact . | . . . . . . Slashing . | . . . . . . Piercing . | . . . . . . Highest Corruption 16 | . 5 . . . 16 Average Corruption 6 | . 4 . . . 7 Corruption Purged . | . . . . . . Corruption Blocked . | . . . . . . Effects 86 | . 13 . . . 73 Message Errors 17 | . 2 . . . 15 Matter Fused 13 | . 4 . . . 9 Heat Flow Errors 8 | . 2 . . . 6 Energy Discharges 12 | . 1 . . . 11 Parts Rejected 1 | . . . . . 1 Parts Fused 2 | . . . . . 2 Data Loss (minor) 8 | . 1 . . . 7 Data Loss (major) 5 | . 1 . . . 4 Misfires 5 | . 1 . . . 4 Alerts 4 | . . . . . 4 Misdirections 1 | . . . . . 1 Weapon Failures 10 | . 1 . . . 9 Overload Shots . | . . . . . . Overflow Damage 303 | . . . 91 202 10 Projectiles 55 | . . . . 45 10 Explosions 248 | . . . 91 157 . Melee . | . . . . . . Knockbacks 88 | . 1 5 24 26 32 Impact 2 | . 1 . . 1 . Kinetic 82 | . . 5 23 24 30 Secondary 4 | . . . 1 1 2 Self-Inflicted Damage 198 | . . . . 198 . Shots 3 | . . . . 3 . Rammed 41 | . 7 12 8 6 8 Targets Rammed 49 | . 8 16 11 6 8 Kicked . | . . . . . . Crushed 8 | . 1 4 3 . . Highest Temperature 402 | . 218 140 299 162 402 Average Temperature 76 | . 79 34 81 44 103 Received Heat Transfer 2885 | . 492 333 549 421 1090 Effects 7 | . . . 5 . 2 Interference 7 | . . . 5 . 2 Siege Activations . | . . . . . . Martial Activations . | . . . . . . Shielding Activations . | . . . . . . Robots Disrupted . | . . . . . . Combat Hostiles . | . . . . . . Robots Corrupted . | . . . . . . Combat Hostiles . | . . . . . . Parts Fried . | . . . . . . Impact Corruptions . | . . . . . . Robots Melted 1 | . . . . . 1 Combat Hostiles 1 | . . . . . 1 Parts Melted 25 | . 4 . 1 5 15 Heat Transferred 13720 | 175 1525 74 1025 2575 8346 Parts Sabotaged . | . . . . . . Parts Stolen . | . . . . . . Parts Stripped . | . . . . . . Power Chain Reactions . | . . . . . . Alert | -11 -10 -9 -8 -7 -6 ------- Run | Yrd Mat Mat Mat Fac Fac Maximum Alert Level 4 | . 1 . 2 3 4 Low Security (%) 48 | 100 96 100 71 18 18 Level 1 27 | . 3 . 17 56 27 Level 2 12 | . . . 10 11 25 Level 3 10 | . . . . 13 23 Level 4 1 | . . . . . 5 Level 5 . | . . . . . . High Security . | . . . . . . Max Security . | . . . . . . Peak Influence 1187 | 5 211 157 439 823 1187 Initial 400 | . . 76 58 196 400 Average 289 | . 86 90 151 329 520 Influence Increases 5145 | 10 527 674 894 1370 1670 Destroy 0b10 Robot/C 3360 | . 300 440 560 940 1120 Destroy 0b10 Robot/NC 230 | 10 30 50 60 45 35 Destroy Leader 828 | . 88 108 118 242 272 Successful Hack 124 | . 19 13 48 19 25 Disable Machine 150 | . . 15 45 75 15 Destroy Structure 93 | . . 3 48 34 8 Lose Combat Pursuer 360 | . 90 45 15 15 195 Influence Decreases 4002 | 10 346 716 602 983 1345 Entered New Map 839 | . . 105 81 235 418 Time Decay 2923 | 10 326 601 511 738 737 Lost Part 240 | . 20 10 10 10 190 Squads Dispatched 45 | . 5 4 3 14 19 Investigation 10 | . 2 3 1 3 1 Extermination 13 | . . . . 7 6 Reinforcement 11 | . 3 1 2 . 5 Assault 5 | . . . . 1 4 Garrison 6 | . . . . 3 3 Intercept . | . . . . . . Searches Triggered . | . . . . . . Construction Impeded . | . . . . . . Haulers Reinforced 1 | . . . . . 1 Active Scanning Responses . | . . . . . . Cargo Convoy Interrupts 1 | . . . . . 1 Stealth | -11 -10 -9 -8 -7 -6 --------- Run | Yrd Mat Mat Mat Fac Fac Distress Signals 13 | . . 4 6 . 3 Communications Jammed . | . . . . . . Distress Signals . | . . . . . . Times Spotted 271 | . 32 36 46 58 99 Peak Tracking Total 10 | . 5 5 6 5 10 Tactical Retreats 15 | . 2 3 1 1 8 Traps | -11 -10 -9 -8 -7 -6 ------- Run | Yrd Mat Mat Mat Fac Fac Traps Triggered 17 | . 6 2 1 . 8 Indirectly . | . . . . . . Trap Hack Attempts . | . . . . . . Triggered . | . . . . . . Disarmed . | . . . . . . Reprogrammed . | . . . . . . Reused . | . . . . . . Traps Extracted . | . . . . . . Installed . | . . . . . . Triggered . | . . . . . . Machines | -11 -10 -9 -8 -7 -6 ---------- Run | Yrd Mat Mat Mat Fac Fac Machines Disabled 10 | . . 1 3 5 1 Max in Single Turn 4 | . . 1 2 4 1 Garrison Access 2 | . . . 1 . 1 Machines Repaired . | . . . . . . Machines Dismantled . | . . . . . . Machines Sabotaged . | . . . . . . Overloaded Fab Kills . | . . . . . . Hacking | -11 -10 -9 -8 -7 -6 --------- Run | Yrd Mat Mat Mat Fac Fac Machines Accessed 46 | . 6 9 7 13 11 Terminals 36 | . 5 8 5 11 7 Fabricators . | . . . . . . Repair Stations 5 | . 1 1 1 . 2 Recycling Units 1 | . . . . 1 . Scanalyzers . | . . . . . . Garrison Access 4 | . . . 1 1 2 Total Hacks 115 | . 23 25 20 25 22 Successful 68 | . 19 15 13 10 11 Failed 47 | . 4 10 7 15 11 Catastrophic 12 | . . 2 2 6 2 Database Lockouts . | . . . . . . Manual 85 | . 14 19 15 21 16 Terminals 93 | . 19 20 17 21 16 Fabricators . | . . . . . . Repair Stations 14 | . 4 5 2 . 3 Recycling Units 2 | . . . . 2 . Scanalyzers . | . . . . . . Garrison Access 6 | . . . 1 2 3 Terminal Hacks 9 | . 5 1 1 1 1 Prototype ID Bank 2 | . 1 1 . . . Terminal Index 3 | . 1 . . 1 1 Registered Components 2 | . 1 . 1 . . Zone Layout 2 | . 2 . . . . Fabricator Hacks . | . . . . . . Repair Station Hacks 12 | . 4 4 2 . 2 Scan Component 6 | . 2 2 1 . 1 Repair 6 | . 2 2 1 . 1 Recycling Unit Hacks 2 | . . . . 2 . Process 1 | . . . . 1 . Retrieve Matter 1 | . . . . 1 . Scanalyzer . | . . . . . . Garrison Access Hacks 2 | . . . 1 . 1 Seal Access 2 | . . . 1 . 1 Unauthorized Hacks 43 | . 10 10 9 7 7 Terminals 43 | . 10 10 9 7 7 Botnet 12 | . 4 3 2 1 2 Operators 5 | . 1 1 2 1 . Skim 26 | . 5 6 5 5 5 Fabricators . | . . . . . . Repair Stations . | . . . . . . Recycling Units . | . . . . . . Scanalyzers . | . . . . . . Garrison Access . | . . . . . . Data Cores Recovered 1 | . . . . 1 . Used . | . . . . . . Hacking Detections 34 | . 3 8 3 10 10 Full Trace Events 5 | . . 1 . 3 1 Feedback Events . | . . . . . . Feedback Blocked . | . . . . . . Robot Schematics Acquired . | . . . . . . Robots Built . | . . . . . . Authchips . | . . . . . . Time . | . . . . . . Total Robot Build Rating . | . . . . . . Part Schematics Acquired . | . . . . . . Parts Built . | . . . . . . Authchips . | . . . . . . Time . | . . . . . . Total Part Build Rating . | . . . . . . Parts Repaired 6 | . 2 2 1 . 1 Time 161 | . 52 52 13 . 44 Parts Recycled . | . . . . . . Recycled Matter . | . . . . . . Retrieved Matter . | . . . . . . Retrieved Components . | . . . . . . Parts Scanalyzed . | . . . . . . Part Schematics Acquired . | . . . . . . Parts Damaged . | . . . . . . Bothacking | -11 -10 -9 -8 -7 -6 ------------ Run | Yrd Mat Mat Mat Fac Fac Used RIF Installer . | . . . . . . Robots Hacked . | . . . . . . Non-combat . | . . . . . . Combat . | . . . . . . Robot Hacks Applied . | . . . . . . Relay Couplers Released 4 | . . . . . 4 Programmers 4 | . . . . . 4 Fabnet Peak Effective % . | . . . . . . Robots Rewired . | . . . . . . Allies Hacked . | . . . . . . Hacks Repelled . | . . . . . . Allies | -11 -10 -9 -8 -7 -6 -------- Run | Yrd Mat Mat Mat Fac Fac Total Allies . | . . . . . . Largest Group . | . . . . . . Highest-Rated Group . | . . . . . . Highest-Rated Ally . | . . . . . . Total Orders . | . . . . . . Ally Attacks . | . . . . . . Total Damage . | . . . . . . Kills . | . . . . . . Allies Corrupted . | . . . . . . Allies Melted . | . . . . . . Intel | -11 -10 -9 -8 -7 -6 ------- Run | Yrd Mat Mat Mat Fac Fac Active Infowar (turns) 7364 | 20 604 449 1717 2687 1887 Sensors 3826 | . . . . 2445 1381 Traps 2 | . . . 2 . . Seismic 7052 | 20 604 449 1717 2525 1737 Robot Analysis Total . | . . . . . . Derelict Logs Recovered . | . . . . . . Drone Launches . | . . . . . . Drone Recoveries . | . . . . . . Exploration | -11 -10 -9 -8 -7 -6 ------------- Run | Yrd Mat Mat Mat Fac Fac Turns Passed 13109 | 114 1438 1922 2156 3750 3729 Spaces Moved 6323 | 49 660 906 1005 1868 1835 Core 125 | 5 . . . 3 117 Treads 6191 | 44 653 906 1005 1865 1718 Legs 7 | . 7 . . . . Wheels . | . . . . . . Hover . | . . . . . . Flight . | . . . . . . Fastest Speed 50 | 50 160 160 160 160 50 Average Speed 161 | 148 161 163 163 168 153 Slowest Speed 1350 | 160 260 240 240 1350 240 Overloaded Moves . | . . . . . . Propulsion Burnouts . | . . . . . . Robots Hopped . | . . . . . . Potential Cave-ins . | . . . . . . Cave-ins Triggered . | . . . . . . Exploration Rate (%) 56 | 5 91 75 72 47 46 Regions Visited 5 Branch Regions . Pre-discovered Areas 9 | . 1 2 2 1 3 Known Exits Taken 3 | . . 1 1 1 . Unknown Exits Taken 2 | 1 1 . . . . Scrap Searched . | . . . . . . Spaces Dug 3 | . . . . 3 . Terrain Destroyed 84 | . . . 52 32 . Melee . | . . . . . . Projectile 12 | . . . . 12 . AOE 72 | . . . 52 20 . Terrain Rammed . | . . . . . . Walls Destroyed . | . . . . . . Machines Disabled . | . . . . . . Actions | -11 -10 -9 -8 -7 -6 --------- Run | Yrd Mat Mat Mat Fac Fac Total 8181 | 69 890 1213 1369 2239 2401 Wait 904 | 3 118 145 181 161 296 Move 6318 | 48 659 905 1004 1867 1835 Hop . | . . . . . . Pick Up 105 | 2 13 27 28 16 19 Fast Attach 23 | 7 3 1 1 . 11 Attach 23 | . 1 2 4 3 13 Detach . | . . . . . . Swap 194 | . 13 24 27 60 70 Drop 121 | . 6 29 38 27 21 Fire 444 | 9 69 64 75 99 128 Melee . | . . . . . . Ram . | . . . . . . Kick . | . . . . . . Crush 49 | . 8 16 11 6 8 Escape Stasis . | . . . . . . Rewire . | . . . . . . Trap . | . . . . . . Miscellaneous . | . . . . . . Route ------- -11/Scrapyard -10/Materials (discovered 5 exits: *Mat x3 / *Min x2) -9/Materials (discovered 5 exits: *Mat x3 / *Min x2) -8/Materials (discovered 3 exits: *Fac x3) -7/Factory (discovered 6 exits: *Fac x2 / [*Sto x2] / *Low x2) -6/Factory (discovered 5 exits: *Fac x4 / [*Low]) History --------- Turn | Location | Event 10 | -11/Scrapyard | Discovered new exit (range 15) 115 | -11/Scrapyard | Entered Materials 319 | -10/Materials | Build established: Mutant 483 | -10/Materials | Discovered new exit (range 15) 998 | -10/Materials | Discovered new exit (range 16) 1035 | -10/Materials | Discovered new exit (range 9) 1160 | -10/Materials | Discovered new exit (range 6) 1287 | -10/Materials | Learned location of 1 exit from Storage 1342 | -10/Materials | Learned location of Subcaves (-10) 1388 | -10/Materials | Learned location of 1 exit from Storage 1412 | -10/Materials | Repaired Lgt. Treads 1426 | -10/Materials | Learned location of 1 exit from Storage 1440 | -10/Materials | Repaired Lgt. Treads 1452 | -10/Materials | Learned 2 Storage zone layouts 1490 | -10/Materials | Identified exit to Mines 1524 | -10/Materials | Learned 4 Subcaves zone layouts 1553 | -10/Materials | Entered another Materials area 1553 | -9/Materials | Evolved 2 slots: Propulsion x1, Weapon x1 1554 | -9/Materials | Identified exit to Materials 1554 | -9/Materials | Identified exit to Mines 2051 | -9/Materials | Build established: Tank 2196 | -9/Materials | Discovered exit to Materials (range 16) 2495 | -9/Materials | Build established: Scavenger-Tank 2756 | -9/Materials | Discovered exit to Mines (range 7) 3090 | -9/Materials | Learned location of Recycling (-7) 3144 | -9/Materials | Learned location of 3 exits from Materials 3190 | -9/Materials | Learned Storage terminal intel 3295 | -9/Materials | Learned 4 Recycling zone layouts 3312 | -9/Materials | Repaired Lgt. Armor Plating 3330 | -9/Materials | Learned location of Storage (-7) 3339 | -9/Materials | Repaired Lgt. Treads 3416 | -9/Materials | Build established: Scavenger-Gunner 3475 | -9/Materials | Entered another Materials area 3475 | -8/Materials | Evolved 2 slots: Propulsion x1, Utility x1 3476 | -8/Materials | Identified exit to Factory 3836 | -8/Materials | Build established: Scavenger-Tank 4278 | -8/Materials | Repaired Lgt. Treads 4761 | -8/Materials | Learned location of Lower Caves (-7) 4830 | -8/Materials | Learned Factory trap positions 4936 | -8/Materials | Learned Storage emergency access door positions 4974 | -8/Materials | Learned Storage trap positions 5047 | -8/Materials | Learned Storage trap positions 5087 | -8/Materials | Learned location of 1 exit from Storage 5136 | -8/Materials | Learned 4 Factory zone layouts 5385 | -8/Materials | Build established: Tank 5631 | -8/Materials | Entered Factory 5631 | -7/Factory | Evolved 2 slots: Utility x2 5632 | -7/Factory | Identified exit to Lower Caves 5633 | -7/Factory | Identified exit to Factory 5634 | -7/Factory | Loaded intel: 115 trap records 6674 | -7/Factory | Build established: Gunner 7084 | -7/Factory | Discovered new exit (range 10) 8400 | -7/Factory | Garrison activated, responded to threat 8446 | -7/Factory | Build established: Tank 8665 | -7/Factory | Discovered new exit (range 16) 9081 | -7/Factory | Discovered exit to Factory (range 5) 9203 | -7/Factory | Learned 2 Upper Caves zone layouts 9231 | -7/Factory | First assault squad dispatched 9271 | -7/Factory | Learned Extension emergency access door positions 9331 | -7/Factory | Learned location of 1 exit from Proximity Caves 9381 | -7/Factory | Learned location of Lower Caves (-6) 9381 | -7/Factory | Entered another Factory area 9381 | -6/Factory | Evolved 2 slots: Power x1, Weapon x1 9801 | -6/Factory | Build established: Gunner 10062 | -6/Factory | Discovered new exit (range 4) 10206 | -6/Factory | Repaired Imp. Cooling System 10243 | -6/Factory | Discovered new exit (range 12) 11197 | -6/Factory | Build established: Tank 11216 | -6/Factory | Cargo convoy interrupted 11481 | -6/Factory | First assault squad dispatched 12329 | -6/Factory | Lost 3 parts (2n1w) 12648 | -6/Factory | Build established: Gunner 12901 | -6/Factory | Identified exit to Factory 12903 | -6/Factory | Garrison activated, responded to threat 12920 | -6/Factory | System corruption reached 10% 12945 | -6/Factory | Learned location of Upper Caves (-5) 12967 | -6/Factory | Spotted B-75 Beast 12977 | -6/Factory | Learned location of Zion (-6) 13008 | -6/Factory | Learned 2 Hub_04(d) zone layouts 13016 | -6/Factory | Destroyed B-75 Beast 13017 | -6/Factory | Learned Extension terminal intel 13037 | -6/Factory | Core integrity fell below 50% 13043 | -6/Factory | Released all parts (5) 13050 | -6/Factory | Core integrity fell below 20% 13073 | -6/Factory | Lost 12 parts (1p2n4u5w) 13110 | -6/Factory | Destroyed by H-61 Shepherd with Heavy Assault Cannon Last Messages --------------- 13049_ U-05 Engineer builds a Door. 13050_ Penetrated by Slug. 13050_ U-05 Engineer builds a Wall. 13050_ Acquired Imp. Signal Interpreter. 13051_ K-01 Serf collects debris. 13052_ System corrupted: Substantial component data lost. 13052_ Penetrated by Slug. 13053_ Slug penetrates L-41 Fighter. 13054_ Acquired Med. Treads. 13056_ K-01 Serf collects debris. 13061_ >> SKIM: Stored Upper Caves entrances (x1). 13061_ >> SKIM: Data seek routine purged. 13078_ System corrupted: Matter fused (-5). 13090_ K-01 Serf cleans the Terminal. 13098_ 03WXN |4Z6PP EFDEZW6JWVOOJFLJSGL TR3W5W& 13108_ Penetrated by Slug. 13108_ Knocked back. 13110_ Penetrated by Slug. Map ----- +----------------------------------------------------+ | # """" # #????????????????????????????? | | + """" + " +????????????????????????????? | | # """" # #????????????????????????????? | | # # #????????????????????????????? | | # ## ##????????????????????????????? | | /# ] ## #?????????????????????????????? | | ? # ## #?????????????????????????????? | | " ###+###### #?????????????????????????????? | | " "???????## ##????????????????????????????? | | " ""??????# #????????????????????????????? | | ""# ##### "" #????????????????????????????? | | " T# T +????????????????????????????? | | " = ""####### #????????????????????????????? | | " ""??????# % =#????????????????????????????? | | ""??????### ###????????????????????????????? | | " #?????????# #???#+##+#?????????????????????? | | " #?????????# #???# #?????????????????????? | | " #######???# #???# #?????????????????????? | | # #???# #???# #?????????????????????? | | " ##### ##### #?????????????????????? | | "T +?????????????????????? | | ############## #?????????????????????? | | ####### #????????????# #?????????????????????? | | ??????### ###??????????### ###???????????????????? | | #???????# #????????????# #???????????????????? | | #???????# #????????????# @HY #???????????????????? | | ######### #????????????#% < u +?????????????? | | ## # #????????????# #######?????????????? | | ## # #????????????# #???????????????????? | | ## " " + #????????????###+###???????????????????? | | ## "T" # #??????????????????????????????????????? | | ?# """ # #??????????????????????????????????????? | | ?# # #??????????????????????????????????????? | | ?######## #??????????????????????????????????????? | | ????????# #??????????????????????????????????????? | | ????????# #??????????????????????????????????????? | | ????????# #??????????????????????????????????????? | | ??????###%#######+######?????????????????????????? | | ??????# ???????????????????????? | | ??????# ???????????????????????? | | ??????#| ??????????????????????? | | #######%= % ! ??????????????????????? | | % != =%[ ??????????????????????? | | #################+######?????????????????????????? | | ? #??????????????????????????????????????? | | #??????????????????????????????????????? | | """ """ #??????????????????????????????????????? | | """ """ #??????????????????????????????????????? | | """ """ #??????????????????????????????????????? | | #??????????????????????????????????????? | +----------------------------------------------------+ Best States ------------- Heat Dissipation 91 Energy Generation 30 Energy Capacity 700 Matter Stores 300 Matter Capacity 300 Sight Range 16 Robot Scan Range 15 Terrain Scan Density 10 Armor Coverage 225 Evasion (%) 50 Targeting Accuracy 8 Recoil Reduction 4 Item Schematics ----------------- None Robot Schematics ------------------ None Fabricated ------------ Nothing Repaired ---------- Lgt. Treads | 6% | -10/Materials Lgt. Treads | 37% | -10/Materials Lgt. Armor Plating | 30% | -9/Materials Lgt. Treads | 71% | -9/Materials Lgt. Treads | 45% | -8/Materials Imp. Cooling System | 70% | -6/Factory Alien Tech Used ----------------- None Achievements -------------- None Challenges ------------ None Game ------ Seed BiometalSupercompositeFlail Manual? 0 Play Time 01:27:27 Cumulative 137.9 hours Start 2025.10.06 @ 20:44:31 End 2025.10.06 @ 22:07:04 Sessions 1 Manual Loads 0 Difficulty Rogue Special Mode None Game No. 251 Rogue 249 Adventurer 0 Explorer 2 Win Type - Total 1 Types 1/0/0/0/0/0/0/0/0/0 Lore% 46 Gallery% 53 Achievement% 44 Wizard Run 0 Options --------- Layout 2 ASCII 0 Keyboard 1 Movement Arrows Keybinds 0 Fullscreen 1 Font 28/SmallcapsGlow Map View 50x49 Zoom Use 0% Tactical HUD 1 Map Filters NONE Filters NONE Steam 1 RUN: 487b66c3-cd22-4b99-99ee-573beb85a4b7